bitfinex/quotes_SOLUSD_20241202
["timestamp","ask_amount","ask_price","bid_price","bid_amount"]
[1733117833149,20.0,229.1,228.92,16.37476835]
[1733117833316,20.0,229.1,228.93,16.37476835]
[1733117833518,20.0,229.1,228.92,16.37476835]
[1733117833720,20.0,229.1,228.93,16.37476835]
[1733117834143,20.0,229.1,228.94,16.37476835]
[1733117834445,20.0,229.1,228.88,70.0]
[1733117834446,20.0,229.1,228.93,16.37476835]
[1733117834642,20.0,229.05,228.89,16.37476835]
[1733117834847,20.0,229.05,228.81,20.9259]
[1733117834848,20.0,229.05,228.87,16.37476835]
[1733117835051,20.0,229.05,228.8,24.34066835]
[1733117835052,20.0,229.01,228.8,28.4949]
[1733117835346,20.0,229.0,228.83,16.37476835]
[1733117835552,20.0,229.0,228.84,16.37476835]
[1733117836135,20.0,229.0,228.83,16.37476835]
[1733117836350,20.0,228.95,228.75,27.1213]
[1733117836643,20.0,228.95,228.8,16.37476835]
[1733117837542,20.0,228.95,228.84,23.776884]
[1733117837744,20.0,228.95,228.86,23.776884]
[1733117838056,20.0,228.95,228.85,23.776884]
[1733117838427,20.0,228.95,228.86,16.37476835]
[1733117838646,8.3571,228.98,228.87,23.776884]
[1733117838835,8.3571,228.98,228.87,40.15165235]
[1733117839024,8.3571,228.98,228.91,23.776884]
[1733117839724,8.3571,228.98,228.91,40.15165235]
[1733117839942,8.3571,228.98,228.91,23.776884]
[1733117840123,8.3571,228.98,228.9,23.776884]
[1733117841333,8.3571,228.98,228.89,23.776884]
[1733117841543,8.3571,228.98,228.89,40.15165235]
[1733117841853,8.3571,228.98,228.91,23.776884]
[1733117842039,8.3571,228.98,228.92,16.37476835]
[1733117842352,20.7131,228.99,228.95,23.776884]
[1733117842934,8.2004,229.04,228.95,40.15165235]
[1733117843246,8.2004,229.04,228.97,23.776884]
[1733117843828,8.2004,229.04,228.97,40.15165235]
[1733117844030,8.2004,229.04,228.98,16.37476835]
[1733117844329,19.359,229.05,229.0,23.776884]
[1733117844550,7.918,229.09,229.0,40.15165235]
[1733117844851,7.918,229.09,229.01,16.37476835]
[1733117845166,7.918,229.09,229.0,40.15165235]
[1733117845936,7.918,229.09,228.99,23.776884]
[1733117846939,7.918,229.09,229.0,16.37476835]
[1733117847251,7.918,229.09,229.01,23.776884]
[1733117848556,7.918,229.09,229.01,40.15165235]
[1733117849226,7.918,229.09,229.01,23.776884]
[1733117849426,7.918,229.09,229.0,23.776884]
[1733117850446,7.918,229.09,228.99,23.776884]
[1733117850838,7.918,229.09,228.98,40.15165235]
[1733117851735,7.918,229.09,228.99,16.37476835]
[1733117851935,7.918,229.09,229.0,16.37476835]
[1733117852137,7.918,229.09,229.02,23.776884]
[1733117852556,7.918,229.09,229.02,40.15165235]
[1733117852851,7.918,229.09,228.97,70.0]
[1733117852852,7.918,229.09,229.05,23.776884]
[1733117853059,7.918,229.09,229.04,23.776884]
[1733117853238,7.918,229.09,229.03,23.776884]
[1733117853643,7.918,229.09,229.01,23.776884]
[1733117854044,7.918,229.09,229.0,23.776884]
[1733117854251,7.918,229.09,228.99,16.37476835]
[1733117854252,8.1151,229.15,229.08,16.37476835]
[1733117854559,8.1151,229.15,229.11,23.776884]
[1733117855137,8.1151,229.15,229.11,40.15165235]
[1733117855363,19.2231,229.16,229.12,16.37476835]
[1733117855765,19.2231,229.16,229.13,23.776884]
[1733117855947,19.2231,229.16,229.11,40.15165235]
[1733117856632,19.2231,229.16,229.11,23.776884]
[1733117857334,19.2231,229.16,229.08,16.37476835]
[1733117857537,19.2231,229.16,229.09,16.37476835]
[1733117857836,19.2231,229.16,229.03,0.87070263]
[1733117857837,19.2231,229.16,229.12,16.37476835]
[1733117858039,7.8003,229.2,229.14,16.37476835]
[1733117858643,7.8003,229.2,229.15,23.776884]
[1733117859467,7.8003,229.2,229.17,40.15165235]
[1733117859762,20.888,229.22,229.18,23.776884]
[1733117859958,20.888,229.22,229.17,23.776884]
[1733117860186,20.888,229.22,229.14,23.776884]
[1733117861438,20.888,229.22,229.14,40.15165235]
[1733117861642,20.888,229.22,229.17,23.776884]
[1733117862266,20.888,229.22,229.17,40.15165235]
[1733117862456,20.888,229.22,229.17,23.776884]
[1733117864147,20.888,229.22,229.17,40.15165235]
[1733117864655,20.888,229.22,229.19,23.776884]
[1733117865769,30.0,229.2,229.19,23.776884]
[1733117866142,30.0,229.2,229.18,23.776884]
[1733117870776,30.0,229.2,229.17,23.776884]
[1733117872881,30.0,229.2,229.16,23.776884]
[1733117873675,30.0,229.2,229.15,23.776884]
[1733117874486,30.0,229.2,229.16,16.37476835]
[1733117874665,30.0,229.2,229.17,23.776884]
[1733117875283,30.0,229.2,229.15,40.15165235]
[1733117876276,30.0,229.2,229.16,16.37476835]
[1733117876678,30.0,229.2,229.17,40.15165235]
[1733117876864,30.0,229.2,229.19,40.15165235]
[1733117877256,30.0,229.2,229.19,23.776884]
[1733117877570,30.0,229.2,229.17,23.776884]
[1733117877869,30.0,229.2,229.16,40.15165235]
[1733117878075,7.9955,229.25,229.16,40.15165235]
[1733117878269,7.9955,229.25,229.16,23.776884]
[1733117878581,7.9955,229.25,229.14,23.776884]
[1733117878582,20.0,229.22,229.14,23.776884]
[1733117878779,20.0,229.22,229.11,16.37476835]
[1733117878953,20.0,229.22,229.12,16.37476835]
[1733117879881,20.0,229.22,229.13,23.776884]
[1733117880076,30.0,229.19,229.13,23.776884]
[1733117881567,30.0,229.19,229.12,23.776884]
[1733117881776,20.0,229.22,229.12,23.776884]
[1733117882263,20.0,229.22,229.12,40.15165235]
[1733117882458,7.9955,229.25,229.14,16.37476835]
[1733117882758,20.0,229.22,229.15,23.776884]
[1733117882970,7.9955,229.25,229.17,16.37476835]
[1733117883185,7.9955,229.25,229.18,23.776884]
[1733117883694,7.9955,229.25,229.16,40.15165235]
[1733117883888,7.9955,229.25,229.16,23.776884]
[1733117884380,20.0,229.22,229.15,23.776884]
[1733117884583,20.0,229.22,229.1,16.37476835]
[1733117885088,20.0,229.22,229.12,16.37476835]
[1733117885483,30.0,229.18,229.12,16.37476835]
[1733117885786,30.0,229.18,229.14,23.776884]
[1733117886590,30.0,229.18,229.12,40.15165235]
[1733117886766,30.0,229.18,229.13,23.776884]
[1733117887180,30.0,229.18,229.12,23.776884]
[1733117887383,30.0,229.18,229.1,16.37476835]
[1733117888188,30.0,229.18,229.12,16.37476835]
[1733117888793,30.0,229.18,229.13,23.776884]
[1733117889495,30.0,229.18,229.12,23.776884]
[1733117891490,30.0,229.18,229.12,40.15165235]
[1733117893099,30.0,229.18,229.16,23.776884]
[1733117893894,30.0,229.18,229.16,40.15165235]
[1733117894196,30.0,229.18,229.16,23.776884]
[1733117894390,30.0,229.18,229.14,23.776884]
[1733117894772,30.0,229.18,229.17,60.27714235]
[1733117894773,6.23,229.18,229.17,60.27714235]
[1733117895096,0.5269661,229.27,229.19,20.0]
[1733117895274,0.5269661,229.27,229.24,16.37476835]
[1733117895472,30.0,229.25,229.22,16.37476835]
[1733117895996,0.5269661,229.27,229.22,16.37476835]
[1733117897802,0.5269661,229.27,229.24,16.37476835]
[1733117898898,0.5269661,229.27,229.25,16.37476835]
[1733117899701,30.0,229.26,229.23,16.37476835]
[1733117899903,30.0,229.26,229.22,16.37476835]
[1733117900478,30.0,229.26,229.24,16.37476835]
[1733117900808,30.0,229.26,229.23,16.37476835]
[1733117901195,30.0,229.26,229.25,16.37476835]
[1733117901380,30.0,229.26,229.24,16.37476835]
[1733117902987,30.0,229.26,229.25,16.37476835]
[1733117904317,30.0,229.26,229.25,40.15165235]
[1733117906498,30.0,229.26,229.25,16.37476835]
[1733117907383,30.0,229.26,229.19,0.8701132]
[1733117907582,30.0,229.26,229.2,23.776884]
[1733117907810,30.0,229.26,229.23,16.37476835]
[1733117909388,30.0,229.26,229.19,16.37476835]
[1733117909701,30.0,229.26,229.2,16.37476835]
[1733117910390,30.0,229.26,229.23,16.37476835]
[1733117910596,30.0,229.26,229.25,16.37476835]
[1733117912507,30.0,229.26,229.25,40.15165235]
[1733117913615,30.0,229.26,229.25,16.37476835]
[1733117917484,20.0,229.23,229.14,0.99751867]
[1733117917690,50.0,229.21,229.13,16.37476835]
[1733117917905,50.0,229.21,229.12,16.37476835]
[1733117918119,50.0,229.21,229.13,16.37476835]
[1733117918405,50.0,229.21,229.12,16.37476835]
[1733117919188,50.0,229.21,229.09,16.37476835]
[1733117919411,50.0,229.21,229.08,16.37476835]
[1733117920103,20.0,229.17,229.08,16.37476835]
[1733117920300,30.0,229.15,229.08,16.37476835]
[1733117920822,30.0,229.15,229.07,16.37476835]
[1733117921617,30.0,229.15,229.03,23.776884]
[1733117921907,20.0,229.11,229.04,16.37476835]
[1733117922222,30.0,229.09,229.03,16.37476835]
[1733117922724,30.0,229.09,229.02,16.37476835]
[1733117922896,30.0,229.09,228.98,16.37476835]
[1733117924017,20.0,229.06,228.97,16.37476835]
[1733117924234,30.0,229.04,228.97,16.37476835]
[1733117924396,30.0,229.04,228.95,16.37476835]
[1733117924600,30.0,229.04,228.94,16.37476835]
[1733117924821,30.0,229.04,228.95,16.37476835]
[1733117925323,30.0,229.04,228.86,16.6947]
[1733117925324,20.0,229.01,228.86,16.6947]
[1733117925525,30.0,228.98,228.9,16.37476835]
[1733117926821,30.0,228.93,228.9,16.37476835]
[1733117927208,30.0,228.93,228.91,23.776884]
[1733117927409,30.0,228.93,228.9,23.776884]
[1733117927624,30.0,228.91,228.87,16.37476835]
[1733117928311,30.0,228.91,228.84,70.0]
[1733117928312,30.0,228.91,228.9,16.37476835]
[1733117929221,30.0,228.91,228.9,40.15165235]
[1733117929728,30.0,228.91,228.9,40.27714235]
[1733117931518,30.0,228.91,228.9,74.3341107]
[1733117932418,30.0,228.92,228.91,94.153354]
[1733117932597,23.2484,229.09,228.97,23.776884]
[1733117932804,23.2484,229.09,228.98,16.37476835]
[1733117933005,23.2484,229.09,228.97,23.776884]
[1733117934627,30.0,228.98,228.97,23.776884]
[1733117935001,30.0,228.98,228.97,40.15165235]
[1733117936806,23.2484,229.09,228.97,40.15165235]
[1733117937008,23.2484,229.09,228.97,23.776884]
[1733117937214,20.0,229.06,228.95,23.776884]
[1733117937813,30.0,228.97,228.94,23.776884]
[1733117938028,30.0,228.97,228.93,36.37476835]
[1733117939330,30.0,228.97,228.94,23.776884]
[1733117939628,30.0,228.97,228.94,40.15165235]
[1733117940233,30.0,228.97,228.95,16.37476835]
[1733117940440,30.0,228.97,228.96,23.776884]
[1733117940812,30.0,228.97,228.96,16.37476835]
[1733117941123,30.0,228.97,228.96,40.15165235]
[1733117942104,30.0,228.97,228.96,23.776884]
[1733117943408,30.0,228.97,228.96,40.15165235]
[1733117944216,23.2484,229.09,228.97,23.776884]
[1733117944412,23.2484,229.09,228.98,17.2457309]
[1733117944720,23.2484,229.09,228.98,24.64784655]
[1733117944721,30.0,228.99,228.98,24.64784655]
[1733117944935,30.0,228.99,228.98,23.902374]
[1733117945121,30.0,228.99,228.98,23.776884]
[1733117946433,30.0,228.99,228.98,40.15165235]
[1733117946643,23.2484,229.09,228.99,23.776884]
[1733117947918,23.2484,229.09,228.99,40.15165235]
[1733117948823,23.2484,229.09,228.99,23.776884]
[1733117949033,23.2484,229.09,228.98,23.776884]
[1733117949236,23.2484,229.09,228.95,16.37476835]
[1733117949548,23.2484,229.09,229.0,16.37476835]
[1733117949838,23.2484,229.09,228.99,16.37476835]
[1733117950138,23.2484,229.09,229.0,16.37476835]
[1733117950325,23.2484,229.09,228.99,16.37476835]
[1733117950726,23.2484,229.09,229.0,23.776884]
[1733117951714,23.2484,229.09,229.0,40.15165235]
[1733117953543,23.2484,229.09,229.0,34.2518751]
[1733117954540,23.2484,229.09,229.02,10.4749911]
[1733117954745,23.2484,229.09,229.02,23.776884]
[1733117956942,25.067,229.16,229.04,10.4749911]
[1733117957149,25.067,229.16,229.08,10.4749911]
[1733117957830,25.067,229.16,229.05,0.87072063]
[1733117957831,25.067,229.16,229.1,23.776884]
[1733117958230,25.067,229.16,229.09,23.776884]
[1733117958822,25.067,229.16,229.09,34.2518751]
[1733117959029,25.067,229.16,229.09,23.776884]
[1733117959331,25.067,229.16,229.08,10.4749911]
[1733117959926,25.067,229.16,229.07,10.4749911]
[1733117960737,20.0,229.13,228.99,17.3543]
[1733117960944,20.0,229.13,228.97,70.0]
[1733117960945,20.0,229.13,229.02,10.4749911]
[1733117961155,20.0,229.13,229.01,10.4749911]
[1733117961342,20.0,229.13,229.03,10.4749911]
[1733117961541,20.0,229.13,229.04,10.4749911]
[1733117961848,20.0,229.13,229.05,10.4749911]
[1733117962534,20.0,229.13,229.04,10.4749911]
[1733117962846,20.0,229.13,229.05,23.776884]
[1733117963544,25.067,229.16,229.05,23.776884]
[1733117963743,20.0,229.13,229.05,23.776884]
[1733117964163,20.0,229.13,228.98,70.12549]
[1733117964164,20.0,229.13,228.98,20.0]
[1733117964441,20.0,229.08,228.98,10.4749911]
[1733117964749,20.0,229.08,228.97,10.4749911]
[1733117965044,20.0,229.08,228.98,10.4749911]
[1733117965426,20.0,229.08,228.93,18.57359892]
[1733117965629,20.0,229.08,228.97,23.776884]
[1733117965849,20.0,229.08,228.95,10.4749911]
[1733117966026,20.0,229.04,228.94,10.4749911]
[1733117966642,20.0,229.04,228.9,0.87115126]
[1733117966951,20.0,229.04,228.96,10.4749911]
[1733117967247,20.0,229.04,228.97,23.776884]
[1733117967626,20.0,229.04,228.96,23.776884]
[1733117967827,20.0,229.04,228.95,10.4749911]
[1733117971024,18.1243,229.07,228.98,10.4749911]
[1733117971230,18.1243,229.07,228.99,10.4749911]
[1733117973759,18.1243,229.07,228.99,23.776884]
[1733117974833,18.1243,229.07,228.97,10.4749911]
[1733117975239,18.1243,229.07,228.98,23.776884]
[1733117976253,18.1243,229.07,228.98,34.2518751]
[1733117980655,18.1243,229.07,228.99,10.4749911]
[1733117981340,18.1243,229.07,228.98,34.2518751]
[1733117981539,18.1243,229.07,228.98,23.776884]
[1733117981751,18.1243,229.07,228.97,23.776884]
[1733117986751,18.1243,229.07,228.97,34.2518751]
[1733117986954,18.1243,229.07,228.99,23.776884]
[1733117987659,18.1243,229.07,228.98,23.776884]
[1733117989530,18.1243,229.07,229.0,10.4749911]
[1733117990357,18.1243,229.07,229.01,23.776884]
[1733117990561,18.1243,229.07,229.03,10.4749911]
[1733117990861,6.9248,229.11,229.03,10.4749911]
[1733117991260,6.9248,229.11,229.05,10.4749911]
[1733117991459,16.0259,229.12,229.08,10.4749911]
[1733117992162,16.0259,229.12,228.99,23.776884]
[1733117992463,16.0259,229.12,229.04,10.4749911]
[1733117992648,16.0259,229.12,229.05,23.776884]
[1733117993263,16.0259,229.12,229.05,34.2518751]
[1733117993466,16.0259,229.12,229.06,10.4749911]
[1733117993769,16.0259,229.12,229.07,10.4749911]
[1733117995289,16.0259,229.12,229.06,23.776884]
[1733117999284,16.0259,229.12,229.06,34.2518751]
[1733118000183,16.0259,229.12,229.06,23.776884]
[1733118003191,16.0259,229.12,228.97,70.0]
[1733118003466,20.0,229.09,228.94,70.87087522]
[1733118003665,20.0,229.09,228.98,10.4749911]
[1733118003867,20.0,229.09,228.99,10.4749911]
[1733118004061,20.0,229.09,229.0,10.4749911]
[1733118004756,20.0,229.09,229.01,23.776884]
[1733118007405,20.0,229.09,229.0,34.2518751]
[1733118007677,20.0,229.09,229.02,34.2518751]
[1733118007860,16.0259,229.12,229.05,23.776884]
[1733118009590,30.0,229.08,229.02,10.4749911]
[1733118009757,30.0,229.08,229.03,23.776884]
[1733118010257,30.0,229.08,229.03,34.2518751]
[1733118011058,16.0259,229.12,229.03,34.2518751]
[1733118011782,16.0259,229.12,229.04,10.4749911]
[1733118011971,30.0,229.06,229.05,23.776884]
[1733118012175,30.0,229.06,229.05,35.24819164]
[1733118013080,6.3679,229.16,229.05,35.24819164]
[1733118013257,6.3679,229.16,229.12,23.776884]
[1733118013456,30.0,229.13,229.12,23.776884]
[1733118014758,30.0,229.13,229.12,34.2518751]
[1733118017363,6.4704,229.21,229.12,34.2518751]
[1733118017563,6.4704,229.21,229.16,10.4749911]
[1733118017803,30.0,229.17,229.16,34.2518751]
[1733118019786,30.0,229.17,229.14,23.776884]
[1733118019992,30.0,229.17,229.16,34.2518751]
[1733118021290,30.0,229.17,229.07,70.0]
[1733118021466,30.0,229.17,229.1,10.4749911]
[1733118022191,30.0,229.17,229.05,0.87053563]
[1733118022379,30.0,229.17,229.09,10.4749911]
[1733118023895,30.0,229.17,229.11,10.4749911]
[1733118024888,30.0,229.17,229.16,10.4749911]
[1733118025073,30.0,229.17,229.16,34.2518751]
[1733118027489,30.0,229.17,229.16,23.776884]
[1733118027861,30.0,229.17,229.16,34.2518751]
[1733118028668,30.0,229.17,229.15,10.4749911]
[1733118029799,30.0,229.17,229.12,23.776884]
[1733118029966,30.0,229.17,229.14,10.4749911]
[1733118030381,30.0,229.17,229.08,23.776884]
[1733118030675,30.0,229.17,229.11,10.4749911]
[1733118030873,30.0,229.17,229.04,0.87068213]
[1733118031080,30.0,229.17,229.11,10.4749911]
[1733118031276,30.0,229.17,229.04,0.87068213]
[1733118031496,22.7231,229.16,229.09,10.4749911]
[1733118035482,22.7231,229.16,229.11,10.4749911]
[1733118035880,22.7231,229.16,229.07,20.0]
[1733118036297,22.7231,229.16,229.1,10.4749911]
[1733118037195,22.7231,229.16,229.12,10.4749911]
[1733118038308,22.7231,229.16,229.05,0.87067893]
[1733118038483,22.7231,229.16,229.0,20.0]
[1733118038687,22.7231,229.16,229.07,20.0]
[1733118039377,20.0,229.08,228.93,17.477272]
[1733118039577,16.2202,229.06,228.87,16.1469]
[1733118039776,16.2202,229.06,228.94,10.4749911]
[1733118040076,16.2202,229.06,228.95,10.4749911]
[1733118040483,20.0,229.03,228.87,0.87129691]
[1733118040685,20.0,228.99,228.89,10.4749911]
[1733118041185,20.0,228.99,228.88,10.4749911]
[1733118041382,20.0,228.99,228.87,10.4749911]
[1733118041595,20.0,228.99,228.87,16.38550872]
[1733118042281,20.0,228.99,228.81,0.99708516]
[1733118042599,20.0,228.99,228.87,16.38550872]
[1733118047199,21.433,229.02,228.92,16.38550872]
[1733118047377,21.433,229.02,228.94,16.38550872]
[1733118047584,21.433,229.02,228.98,16.38550872]
[1733118049003,6.5378,229.07,229.01,16.38550872]
[1733118049178,6.5378,229.07,229.02,16.38550872]
[1733118049896,6.5378,229.07,229.02,16.29381706]
[1733118050299,6.5378,229.07,228.99,23.776884]
[1733118050300,6.5378,229.07,229.03,16.38550872]
[1733118050505,15.0717,229.08,229.05,16.38550872]
[1733118050801,6.5607,229.12,229.06,16.38550872]
[1733118051197,6.5607,229.12,229.05,16.38550872]
[1733118052006,6.5607,229.12,229.04,16.38550872]
[1733118052184,6.5607,229.12,229.05,23.776884]
[1733118052705,6.5607,229.12,229.05,40.16239272]
[1733118055404,6.5607,229.12,229.05,23.776884]
[1733118055703,6.5607,229.12,229.04,23.776884]
[1733118056890,6.5607,229.12,229.04,40.16239272]
[1733118057813,15.0362,229.14,229.08,16.38550872]
[1733118060706,15.0362,229.14,229.09,16.38550872]
[1733118061299,15.4861,229.19,229.13,16.38550872]
[1733118061495,15.4861,229.19,229.15,16.38550872]
[1733118061805,15.4861,229.19,229.14,16.38550872]
[1733118062000,15.4861,229.19,229.1,23.776884]
[1733118062205,15.4861,229.19,228.99,70.0]
[1733118062407,6.0155,229.16,229.03,16.38550872]
[1733118062702,6.0155,229.16,229.04,16.38550872]
[1733118062914,6.0155,229.16,229.03,16.38550872]
[1733118063104,6.0155,229.16,229.02,16.38550872]
[1733118063423,6.0155,229.16,229.05,16.38550872]
[1733118063620,6.0155,229.16,229.07,40.16239272]
[1733118063813,6.0155,229.16,229.09,16.38550872]
[1733118065415,6.0155,229.16,229.08,16.38550872]
[1733118065598,6.0155,229.16,229.09,23.776884]
[1733118067129,15.4861,229.19,229.11,40.16239272]
[1733118067419,6.0066,229.21,229.15,16.38550872]
[1733118067597,5.0,229.34,229.16,40.16239272]
[1733118067598,16.1613,229.25,229.16,40.16239272]
[1733118071520,16.1613,229.25,229.16,23.776884]
[1733118071827,16.1613,229.25,229.13,23.776884]
[1733118072117,16.1613,229.25,229.11,16.38550872]
[1733118072319,16.1613,229.25,229.12,16.38550872]
[1733118072525,16.1613,229.25,229.13,16.38550872]
[1733118073121,16.1613,229.25,229.12,16.38550872]
[1733118073307,16.1613,229.25,229.1,23.776884]
[1733118073509,16.1613,229.25,229.12,23.776884]
[1733118073814,16.1613,229.25,229.16,40.16239272]
[1733118075303,16.1613,229.25,229.14,23.902374]
[1733118075502,16.1613,229.25,229.16,40.16239272]
[1733118075918,16.1613,229.25,229.17,23.776884]
[1733118076117,16.1613,229.25,229.14,16.38550872]
[1733118076413,16.1613,229.25,229.15,23.776884]
[1733118076607,16.1613,229.25,229.14,40.16239272]
[1733118076803,16.1613,229.25,229.13,16.38550872]
[1733118077005,16.1613,229.25,229.12,23.776884]
[1733118077215,16.1613,229.25,229.14,23.776884]
[1733118077804,16.1613,229.25,229.14,16.38550872]
[1733118078001,16.1613,229.25,229.15,23.776884]
[1733118079819,16.1613,229.25,229.13,16.38550872]
[1733118080000,16.1613,229.25,229.12,23.776884]
[1733118080001,30.0,229.17,229.12,23.776884]
[1733118080202,30.0,229.17,229.11,23.776884]
[1733118081037,30.0,229.17,229.08,16.38550872]
[1733118081324,30.0,229.17,229.02,86.38550872]
[1733118081325,22.6634,229.16,229.04,16.38550872]
[1733118081532,30.0,229.14,229.04,16.38550872]
[1733118081896,30.0,229.14,229.05,16.38550872]
[1733118082317,30.0,229.14,229.04,16.38550872]
[1733118082704,30.0,229.14,229.05,23.776884]
[1733118083520,30.0,229.14,229.05,40.16239272]
[1733118084815,30.0,229.14,229.05,23.776884]
[1733118085133,30.0,229.14,229.01,16.38550872]
[1733118086323,20.0,229.13,229.02,23.776884]
[1733118088307,20.0,229.13,228.99,16.38550872]
[1733118088525,20.0,229.09,228.97,16.38550872]
[1733118088907,20.0,229.09,228.98,16.38550872]
[1733118089222,30.0,229.08,228.98,16.38550872]
[1733118089421,6.4084,229.07,228.97,16.38550872]
[1733118089625,6.4084,229.07,228.96,16.38550872]
[1733118089823,6.4084,229.07,228.97,16.38550872]
[1733118089998,6.4084,229.07,228.99,16.38550872]
[1733118090201,6.4084,229.07,229.02,16.38550872]
[1733118090400,6.4084,229.07,229.03,16.38550872]
[1733118090605,30.0,229.04,229.03,16.38550872]
[1733118090825,30.0,229.04,229.03,40.16239272]
[1733118092134,22.1422,229.12,229.04,23.776884]
[1733118094608,30.0,229.05,229.04,23.776884]
[1733118095732,30.0,229.05,229.04,40.16239272]
[1733118096707,30.0,229.05,229.04,40.41337272]
[1733118097417,6.4568,229.17,229.07,20.0]
[1733118097626,30.0,229.08,229.07,20.0]
[1733118097820,30.0,229.08,229.07,43.776884]
[1733118098433,15.5293,229.18,229.08,23.776884]
[1733118099113,15.5293,229.18,229.1,16.38550872]
[1733118099312,6.6646,229.22,229.16,16.38550872]
[1733118099626,30.0,229.17,229.15,23.902374]
[1733118099812,15.8098,229.24,229.15,23.902374]
[1733118100013,15.8098,229.24,229.17,23.776884]
[1733118100441,15.8098,229.24,229.2,16.38550872]
[1733118100614,30.0,229.21,229.2,40.16239272]
[1733118101346,30.0,229.21,229.2,23.776884]
[1733118101819,30.0,229.21,229.19,40.16239272]
[1733118102541,30.0,229.21,229.17,16.38550872]
[1733118102856,30.0,229.21,229.17,23.776884]
[1733118103040,30.0,229.21,229.15,16.38550872]
[1733118103246,30.0,229.21,229.14,23.776884]
[1733118103421,30.0,229.21,229.13,16.38550872]
[1733118103618,30.0,229.21,229.14,16.38550872]
[1733118104811,30.0,229.21,229.08,0.87052206]
[1733118105017,30.0,229.21,229.12,16.38550872]
[1733118105216,30.0,229.21,229.13,23.776884]
[1733118105436,30.0,229.21,229.13,40.16239272]
[1733118106041,30.0,229.21,229.12,16.38550872]
[1733118106238,30.0,229.21,229.13,23.776884]
[1733118107831,30.0,229.21,229.13,40.16239272]
[1733118108848,30.0,229.21,229.17,16.38550872]
[1733118109144,30.0,229.21,229.15,40.16239272]
[1733118109949,30.0,229.21,229.16,16.38550872]
[1733118110242,30.0,229.21,229.17,23.776884]
[1733118111837,30.0,229.21,229.16,23.776884]
[1733118113635,30.0,229.21,229.13,16.38550872]
[1733118114340,30.0,229.21,229.14,16.38550872]
[1733118114542,15.8098,229.24,229.12,20.0]
[1733118114743,15.8098,229.24,229.06,27.55900872]
[1733118114744,15.8098,229.24,229.07,0.12549]
[1733118115040,15.8098,229.24,229.1,0.12549]
[1733118115520,15.8098,229.24,229.09,0.12549]
[1733118115853,15.8098,229.24,229.11,0.12549]
[1733118116155,15.8098,229.24,229.12,24.027864]
[1733118116442,15.8098,229.24,229.12,23.776884]
[1733118116647,15.8098,229.24,229.1,23.902374]
[1733118117452,30.0,229.19,229.05,86.5019]
[1733118117752,30.0,229.19,229.06,0.87063445]
[1733118118739,22.3753,229.18,229.03,24.027864]
[1733118118932,22.3753,229.18,229.04,0.12549]
[1733118119255,20.0,229.09,228.89,150.66551481]
[1733118119426,23.776884,229.07,228.94,70.0]
[1733118119634,23.776884,229.07,228.95,0.87103351]
[1733118119838,30.0,229.05,228.95,0.87103351]
[1733118120550,30.0,229.05,228.96,0.12549]
[1733118120759,30.0,229.05,228.97,0.87100229]
[1733118121258,30.0,229.05,228.96,0.25098]
[1733118121740,30.0,229.05,228.95,0.87101494]
[1733118122834,24.64756522,229.04,228.91,0.87104509]
[1733118123038,30.0,229.02,228.91,0.87104509]
[1733118123345,30.0,229.02,228.93,70.0]
[1733118123531,30.0,229.02,228.94,0.99663196]
[1733118123736,30.0,229.02,228.94,0.12549]
[1733118124047,39.89046522,229.01,228.87,70.0]
[1733118124223,30.0,228.98,228.88,0.87128668]